Workbook

Sheet Workbook Instructions
A1: Invitation for Bid: GPA-012-23
A2: Renewable Energy Resource Acquisition for the Guam Power Authority (Phase IV)
A3: QUALITATIVE SCORING WORKBOOK INSTRUCTIONS
A5: Bidders should enter their name in highlighted cell, this will title the other sheets in the workbook with the Bidder's name.
A8: Bidder should enter a unique bid no. (1,2,3….) in the highlighted cell if submitting more than one bid.
A9: <<< BIDDER'S BID NO >>>
A12: Overview:
A13: Bidders are required to complete Task 1 and Task 2 described below. GPA staff will complete Tasks 3 and 4. Bidders must fill in the worksheets titled "Part 1- Qual Support References" and "Part 2 - Technical Data" and return an electronic copy of this entire workbook with their IFB submittals. GPA will review each Bidder's submittal of Task 1 to ensure that the referenced pages/sections given by the Bidder in the worksheet truly support compliance with the Technical Requirements. The Bidders have been given the Task 1 worksheet to facilitate the bid evaluation. In addition, GPA has requested for specific technical information that must be provided as described in Task 2. For the Bidders' reference, there is a copy of the scoring sheet used to qualify/disqualify the Unpriced Technical Offers on the worksheet titled "Part 3 - Qual Eval Scoresheet." The Bidders may use this sheet as a tool to assess the strength of their submittals. However, GPA evaluators will fill this information in for each bid received and only the GPA evaluators' scorings will count.
A15: Task 1: | D15: Complete the worksheet titled "Part 1-Qual Support References
D16: Each Bidder Must Complete Task 1.
A18: Step | D18: Directions
A19: 1 | D19: Go to the "Part 1 - Qual Support References" worksheet.
A21: 2 | D21: In Column E, labeled "Bid Reference," cite the volume, chapter, section, page number, etc. of the Bidder's submittal where the information supporting compliance for the given Checklist Item can be found. Give locational references as specifically as possible. Leave the reference cell blank if the bid does not contain adequate supporting information for the given Checklist Item.
A24: Task 2: | D24: Complete the worksheet titled "Part 2 - Technical Data"
D25: Each Bidder Must Complete Task 2.
A27: Step | D27: Directions
A28: 1 | D28: Go to the "Part 2 - Technical Data" worksheet.
D29: This width of this sheet (columns B to Q) can be viewed completely by setting zoom to 84%
A31: 2 | D31: Fill in the yellow highlighted cells in this worksheet with the information requested. Additional instructions are provided below. If any of the items are not applicable, mark "N/A".
B33: No: | D33: Technical Data Request:
B34: 1. | D34: Provide the name of the company bidding.
B35: 2. | D35: Provide Bidder contact information.
B36: 3. | D36: Provide the name of the renewable energy project.
B37: 4. | D37: Assign a bid number to the bid form. If a Bidder is submitting two alternative bids for the same project, the bid number would be 1 for the first and 2 for the second. Alternative bids might be submitted for different CODs, project sizes, etc.
B38: 5. | D38: Select the renewable energy technology being utilized by the project. If the technology is not listed in the selection list enter the technology on the space provided directly to the right of the selection box.
B39: 6. | D39: Provide the location of the project by street address (if available). If a street address is not applicable, provide GPS coordinates or a general description of where the project is located.
B40: 7. | D40: Indicate whether the proposed facility is new or existing. This refers to the project that will be supplying renewable energy in this bid request.
B41: 8. | D41: Provide the names, contact information, and ownership share for project owner(s).
B42: 9. | D42: Provide the requested project technical information specific to the project being proposed.
B43: 9.A | D43: Date of Initial Operation. Provide the date at which the project is operational. This may not be the date at which GPA will begin to receive renewable power (i.e. startup for test)
B44: 9.B | D44: Agreement beginning date. Provide the date at which GPA will begin receiving renewable energy. Note: May not be the same as 9.A.
B45: 9.C | D45: Nameplate capacity of the facility in kW.
B46: 9.D | D46: ESS capacity, in MW and MWh.
B47: 9.E | D47: Estimated annual capacity factor (net) percentage.
B48: 9.F | D48: Guaranteed net annual generation in MWh/yr. Bidders are required to provide annual production guarantees for each contract year.
B49: 9.G | D49: Minimum annual generation in MWh/yr at 95% Confidence Level. Bidders are required to provide annual production for each contract year.
B50: 9.H | D50: Guaranteed Success Rate, AC-AC Efficiency and Availability in percentage.
B51: 9.I | D51: Estimated equivalent availability factor percentage.
B52: 9.J | D52: Expected project life in years.
B53: 10. | D53: Provide the requested project interconnection and transmission information:
B54: 10.A | D54: Voltage at which the project interconnects to the transmission system.
B55: 10.B | D55: Point of interconnection or interconnection substation name.
B56: 10.C | D56: Name of the transmission line on which the project is interconnected.
B57: 10.D | D57: Total interconnection cost. Bidder is to provide estimate on interconnection costs. GPA will conduct a system interconnection study for bidders who have been selected for award at the cost of the selected bidder to verify and confirm the amount provided here.
B58: 11. | D58: Provide the requested Power Purchase Agreement Non-Pricing Information:
B59: 11.A | D59: Term of the agreement, in years.
B60: 11.B | D60: Contract net capacity, in MW. Contracts with selected bidders will be based on the capacity provided here. GPA will not be obligated to purchase additional energy beyond the proposed project capacity.
B61: 12. | D61: Provide the monthly estimated average net MWh per hour for every hour of the day. GPA requests for operation profile to evaluate the project. Annual projections must equal the Guaranteed net annual generation in 9.G above.
B62: 13. | D62: Provide the monthly estimated net portfolio credits per hour for every hour of the day.
B63: 14. | D63: If the Bidder is proposing an arrangement not covered by either of the preceding categories, the Bidder may include a description of the agreement here. The Bidder is responsible for providing sufficient information to allow GPA to evaluate this alternative bid package.
A66: Task 3: | D66: Review the Bidder's information referenced under Task 1 and Task 2.
D67: GPA Evaluators Shall Complete Task 3.
A69: Step | D69: Directions
A70: 1 | D70: Review Bidder entries in Column E of the sheet "Part 1 - Qual Support References" and additional information in "Part 2 - Technical Data." Using these entries, evaluate the Bidder's supporting documents to determine if the Bidder has provided enough information and has met the Technical Requirements.
A73: Task 3: | D73: Score the Bidder's IFB submittal using the worksheet titled "Part 2 - Qual Eval Scoresheet"
D74: GPA Evaluators Shall Complete Task 3.
A76: Step | D76: Directions
A77: 1 | D77: Go to the "Part 2 - Qual Eval Scoresheet" worksheet.
A79: 2 | D79: In Column H, rate the quality of the Bidder's response to each requested Checklist Item, based on review of the submittal.

Sheet Part 1- Qual Support References
A1: Invitation for Bid: GPA-012-23
A2: Renewable Energy Resource Acquisition for the Guam Power Authority (Phase IV)
A3: PART 1 - QUAL SUPPORT REFERENCES
A4: =CONCATENATE("Bidder's Name: ",'Workbook Instructions'!A6) -> Bidder's Name: | E4: =CONCATENATE("Bidder's No.: ",'Workbook Instructions'!A9) -> Bidder's No.: <<< BIDDER'S BID NO >>> | F4: =+IF(H140>0,"DATA MISSING","No Error") -> DATA MISSING | H4: TEST ERROR
A6: EVALUATION FACTORS | E6: BID REFERENCE | F6: ALERTS
E7: (Enter the chapter/section and page number where information is to be found within submitted materials)
A8: A. PROJECT DEVELOPMENT | F8: =IF(ISBLANK(E8),"<<< Reference Required","") -> <<< Reference Required | H8: =IF(F8="<<< Reference Required",1,0) -> 1
B9: A1. Method and status of project financing (3)
B10: Bidders are required to provide responses to all questions below. Bidders are required to demonstrate the financial viability of their project. Bidders should provide the following information:
C11: A1-a. Identification of equity participants.
D12: • Who are the equity participants in the project?
C13: A1-b. Evidence that the project will be financed. | F13: =IF(ISBLANK(E13),"<<< Reference Required","") -> <<< Reference Required | H13: =IF(F13="<<< Reference Required",1,0) -> 1
D14: • How will the project be financed?
D15: • Is there a written commitment from the equity participants? If so, please provide a copy with confidential information redacted if necessary. | F15: =IF(ISBLANK(E15),"<<< Reference Required","") -> <<< Reference Required | H15: 1
D16: • Discuss and/or provide supporting information on any project financing guarantees. | F16: =IF(ISBLANK(E16),"<<< Reference Required","") -> <<< Reference Required | H16: 1
D17: • Does the developer envision any conditions precedent to project financing other than execution of the power purchase agreement and Guam Public Utilities Commission approval of the power purchase agreement? If so, what do you expect them to be? | F17: =IF(ISBLANK(E17),"<<< Reference Required","") -> <<< Reference Required | H17: 1
C18: A1-c. Description of the Bidder’s organizational structure from a financial and legal perspective, including any general and limited partners, involvement of subsidiaries, providers of capital, and percentage interest of each party. | F18: =IF(ISBLANK(E18),"<<< Reference Required","") -> <<< Reference Required | H18: 1
C19: A1-d. Provide a description of the financing plan for the project, including construction and term financing. The financing plan should address information contained in the pro forma, such as: | F19: =IF(ISBLANK(E19),"<<< Reference Required","") -> <<< Reference Required | H19: 1
D20: • The project’s projected financial structure
D21: • Expected sources of debt and equity financing | F21: =IF(ISBLANK(E21),"<<< Reference Required","") -> <<< Reference Required | H21: 1
D22: • Estimated capital cost. | F22: =IF(ISBLANK(E22),"<<< Reference Required","") -> <<< Reference Required | H22: 1
D23: • Evidence the project is financeable | F23: =IF(ISBLANK(E23),"<<< Reference Required","") -> <<< Reference Required | H23: 1
D24: • In addition, the financing plan should address the financing of development costs. All bidders are required to provide this information. | F24: =IF(ISBLANK(E24),"<<< Reference Required","") -> <<< Reference Required | H24: 1
C25: A1-e. Provide documentation illustrating the experience of the project sponsor in securing financing for projects of similar size and technology. For each project provide the following information: | F25: =IF(ISBLANK(E25),"<<< Reference Required","") -> <<< Reference Required | H25: 1
D26: • Project name and location
D27: • Project type and size | F27: =IF(ISBLANK(E27),"<<< Reference Required","") -> <<< Reference Required | H27: 1
D28: • Date of construction and permanent financing | F28: <<< Reference Required | H28: 1
C29: A1-f. Provide evidence that the Bidder has the financial resources and financial strength to complete and operate the project as planned. | F29: <<< Reference Required | H29: 1
C30: A1-g. Provide copies of the most recent audited financial statement or annual report for each Bidder, including affiliates of the Bidder. Also, list the current credit rating from Standard & Poor’s and Moody’s for the sponsor, affiliates, partners, and credit support provider. | F30: <<< Reference Required | H30: 1
C31: A1-h. The Bidder should demonstrate its ability (and/or the ability of its credit support provider) to provide the required security, including its plan for doing so (including type of security, sources of security and a description of its credit support provider). | F31: <<< Reference Required | H31: 1
C32: A1-i. Provide a description of any current credit issues regarding the Bidder or affiliate entities raised by rating agencies, banks, or accounting firms. | F32: <<< Reference Required | H32: 1
C33: A1-j. Describe the implication of the federal Production Tax Credits or Investment Tax Credits (or similar incentives) on the viability of the project. | F33: <<< Reference Required | H33: 1
C34: A1-k. Provide a memorandum with supporting information demonstrating that the proposal will not be subject to Variable Interest Entity treatment[1] and that GPA will not have to carry this entity on its financial statements. | F34: <<< Reference Required | H34: 1
D35: NOTE [1] GPA is not willing to be subject to accounting treatment that results from variable interest entity (“VIE”) treatment as set forth in Financial Accounting Standards Board Interpretation No. 46 (revised December 2003) (“FIN46R”).
C36: A1-l. Pro forma income and cash flow statement conforming to Generally Accepted Accounting Principles for the project for the term of the proposed Power Purchase Agreement (include revenue and cost data by major categories, debt service, depreciation expenses and other relevant information). Bidders may propose to submit their financial pro forma to a mutually agreed upon independent third party rather than to GPA. Bidders should note that this information will be required of short-listed bidders only and will be requested by GPA upon shortlist notification or after. Should GPA request pro forma financial information from the bidder, the information will only be used for project viability assessment only. | F36: =IF(ISBLANK(E36),"<<< Reference Required","") -> <<< Reference Required | H36: 1
C37: A1-m. Bidders must disclose any litigation related to projects owned or managed by them or any of their affiliates in the United States. | F37: =IF(ISBLANK(E37),"<<< Reference Required","") -> <<< Reference Required | H37: 1
B38: A2. Level of site control by developer (3) | F38: =IF(ISBLANK(E38),"<<< Reference Required","") -> <<< Reference Required | H38: 1
B39: Bidders should provide GPA with some confidence regarding the level of control Bidder has on the project site.
C40: A2-a. Provide a map of the site that clearly identifies the location of the site, the total acreage, the interconnection point, and the relationship of the site to other local infrastructure. In addition to providing the required map, provide a site layout plan which illustrates the location of all equipment and facilities on the site.
C41: A2-b. Identify any rights-of-way or easements that are required for access to the project or for interconnection. Describe the status of rights-of-way and easement acquisition, and describe the plan for securing the necessary rights-of-way, including the proposed timeline. | F41: =IF(ISBLANK(E41),"<<< Reference Required","") -> <<< Reference Required | H41: 1
C42: A2-c. Describe whether the project has the capability for expansion at the proposed site. If so, describe the expansion capability possible. | F42: <<< Reference Required | H42: 1
B43: A3. Project team experience (5) | F43: =IF(ISBLANK(E43),"<<< Reference Required","") -> <<< Reference Required | H43: 1
B44: Bidders are required to demonstrate project experience and management capability to successfully develop and operate the project proposed. GPA is interested in a project team which has demonstrated success in projects of similar type, size and technology and can demonstrate an ability to effectively work together to bring the project to commercial operation in a timely fashion.
C45: A3-a. Provide an organizational chart for the project that lists the project participants and identifies the management structure and responsibilities.
C46: A3-b. For each of the project participants (including the Bidder, partners, and proposed contractors), provide statements that list the specific experience of the firm in developing, financing, owning, and operating generating facilities, other projects of similar type, size and technology, and any evidence that the project participants have worked jointly on other projects. If a bidder is relying on the experience of a consultant or contractor to meet the Experience Threshold Requirement, the bidder should describe any contractual relationships between the bidder and the consultant or contractor. | F46: =IF(ISBLANK(E46),"<<< Reference Required","") -> <<< Reference Required | H46: 1
C47: A3-c. Provide a management chart which lists the key personnel dedicated to this project and provide profiles or curriculum vitae of the key personnel. | F47: =IF(ISBLANK(E47),"<<< Reference Required","") -> <<< Reference Required | H47: 1
C48: A3-d. Provide a listing of all projects the project sponsor has successfully developed or that are currently under construction. Provide the following information as part of the response: | F48: =IF(ISBLANK(E48),"<<< Reference Required","") -> <<< Reference Required | H48: 1
D49: • Name of the project
D50: • Location of the project | F50: =IF(ISBLANK(E50),"<<< Reference Required","") -> <<< Reference Required | H50: 1
D51: • Project type, size and technology | F51: <<< Reference Required | H51: 1
D52: • Commercial operation date | F52: <<< Reference Required | H52: 1
D53: • Capacity factor of the unit for the past three years | F53: <<< Reference Required | H53: 1
D54: • Availability factor of the unit for the past three years | F54: <<< Reference Required | H54: 1
D55: • References, including the names and current addresses and telephone numbers of individuals to contact for each reference. | F55: <<< Reference Required | H55: 1
C56: A3-e. With regard to the Seller’s project team, identify and describe the entity responsible for the following: | F56: <<< Reference Required | H56: 1
D57: • Construction Period Lender
D58: • Operating Period Lender | F58: =IF(ISBLANK(E58),"<<< Reference Required","") -> <<< Reference Required | H58: 1
D59: • Financial Advisor | F59: <<< Reference Required | H59: 1
D60: • Environmental Consultant | F60: <<< Reference Required | H60: 1
D61: • Owner’s Engineer | F61: <<< Reference Required | H61: 1
D62: • Construction Contractor | F62: <<< Reference Required | H62: 1
D63: • Transmission Consultant | F63: <<< Reference Required | H63: 1
D64: • Legal Counsel | F64: <<< Reference Required | H64: 1
B65: A4. Project Schedule & Commerical Operation Date | F65: <<< Reference Required | H65: 1
B66: A5. Status of equipment supply and EPC agreements(3) | F66: <<< Reference Required | H66: 1
B67: Bidders should provide information about the specific technology or equipment including the track record of the technology and equipment.
C68: A5-a. Provide a reasonable but preliminary engineering plan which includes the following information:
D69: • Name of principal engineering firm responsible for facility design
D70: • Type of generation technology | F70: =IF(ISBLANK(E70),"<<< Reference Required","") -> <<< Reference Required | H70: =IF(F70="<<< Reference Required",1,0) -> 1
D71: • Major equipment considered or expected to be used | F71: <<< Reference Required | H71: 1
D72: • Equipment vendors selected/considered | F72: <<< Reference Required | H72: 1
D73: • History of equipment operations | F73: <<< Reference Required | H73: 1
D74: • Equipment procurement strategy | F74: <<< Reference Required | H74: 1
C75: A5-b. Provide name of expected key equipment suppliers and information that illustrates and discusses the proposed equipment and technology, lead times for delivery to GPA, and suppliers prior experience with equipment operation in tropical island environments. | F75: <<< Reference Required | H75: 1
C76: A5-c. Please identify similar equipment by the same manufacturer that are presently in commercial operations including the number installed, installed capacity and estimated generation. | F76: <<< Reference Required | H76: 1
C77: A5-d. Provide evidence that the technology to be employed for energy production is ready for transfer to the design and construction phases. | F77: <<< Reference Required | H77: =IF(F77="<<< Reference Required",1,0) -> 1
D78: • Describe the technology to be employed for energy production.
D79: • To the developer’s best knowledge, are there, or have there been any similar plants in commercial operation? If not, i) are there, or have there been, any pilot projects, and ii) please provide evidence that the technology to be employed for energy production has been proven. Such evidence may include copies of studies confirming technical feasibility. | F79: =IF(ISBLANK(E79),"<<< Reference Required","") -> <<< Reference Required | H79: 1
C80: A5-e. Please indicate if the Bidder has secured its equipment for the project. If not, identify the long-lead equipment options and describe the timing for securing equipment. | F80: =IF(ISBLANK(E80),"<<< Reference Required","") -> <<< Reference Required | H80: 1
B81: A6. Bidder concurrence to the draft Purchase Power Agreement (5) | F81: =IF(ISBLANK(E81),"<<< Reference Required","") -> <<< Reference Required | H81: 1
A82: B. PHYSICAL PROJECT CHARACTERISTICS | F82: =IF(ISBLANK(E82),"<<< Reference Required","") -> <<< Reference Required | H82: 1
B83: B1. Operating Profile (5) | F83: =IF(ISBLANK(E83),"<<< Reference Required","") -> <<< Reference Required | H83: 1
C84: B1-a. Conformance with Performance Standards
C85: B1-b. Impacts on System Operations/Stability | F85: =IF(ISBLANK(E85),"<<< Reference Required","") -> <<< Reference Required | H85: 1
C86: B1-c. Generation Profile | F86: =IF(ISBLANK(E86),"<<< Reference Required","") -> <<< Reference Required | H86: 1
C87: B1-d. Quality of Forecasting and Dispatchability | F87: =IF(ISBLANK(E87),"<<< Reference Required","") -> <<< Reference Required | H87: 1
C88: B1-e. O&M Plan and Coordination of Maintenance | F88: =IF(ISBLANK(E88),"<<< Reference Required","") -> <<< Reference Required | H88: 1
D89: • Provide an operation and maintenance plan for the project that demonstrates the long term operational viability of the proposed project. The plan should include a discussion of the staffing levels proposed for the project, the expected role of the project sponsor or outside contractor, scheduling of major maintenance activity, maintenance funding levels, and the plan for testing equipment.
D90: • Indicate whether or not the project sponsor is willing to coordinate the maintenance schedule for the project with the annual maintenance schedule of GPA. | F90: =IF(ISBLANK(E90),"<<< Reference Required","") -> <<< Reference Required | H90: 1
D91: • Describe the status of the project sponsor in securing any operation and maintenance agreements or contracts. Include a discussion of the sponsors plan for securing a long-term O&M contract. | F91: =IF(ISBLANK(E91),"<<< Reference Required","") -> <<< Reference Required | H91: 1
D92: • Provide examples of the Bidder’s experience with O&M services for other similar projects. | F92: =IF(ISBLANK(E92),"<<< Reference Required","") -> <<< Reference Required | H92: 1
B93: B2. Point of delivery (5) | F93: =IF(ISBLANK(E93),"<<< Reference Required","") -> <<< Reference Required | H93: 1
C94: B2-a. Provide preliminary Single-Line Diagram(s) for the generation and interconnection facilities (see Appendix H for required details)
C95: B2-b. Provide a plan map of the facilities; indicate the interconnection point to the GPA system. | F95: =IF(ISBLANK(E95),"<<< Reference Required","") -> <<< Reference Required | H95: 1
C96: B2-c. Provide the technical specifications and other information available for the generators included in the proposal. | F96: =IF(ISBLANK(E96),"<<< Reference Required","") -> <<< Reference Required | H96: 1
B97: B3. Risk that the resource will not perform as expected (5) | F97: =IF(ISBLANK(E97),"<<< Reference Required","") -> <<< Reference Required | H97: 1
C98: Discuss risks and plans associated with resource performance.
B99: B4. Project life and extension options. (5) | F99: =IF(ISBLANK(E99),"<<< Reference Required","") -> <<< Reference Required | H99: 1
C100: Describe willingness to allow GPA to extend the life of a resource beyond the initial term or forecast provide potential future risk mitigation. As a result, proposals that provide rights to long-term access to the resource or energy supply will be scored higher than proposals that do not provide similar rights .
A101: C. POWER PRODUCT CHARACTERISTICS | F101: =IF(ISBLANK(E101),"<<< Reference Required","") -> <<< Reference Required | H101: 1
B102: C1. Guaranteed Annual MWH (3)
B103: C2. Dispatchability (3) | F103: =IF(ISBLANK(E103),"<<< Reference Required","") -> <<< Reference Required | H103: 1
B104: C3. Product flexibility (3) | F104: =IF(ISBLANK(E104),"<<< Reference Required","") -> <<< Reference Required | H104: 1
C105: C3-a. Discuss In-service date (GPA prefers projects that reasonably propose a commercial operation date in the 2022-2023 timeframe)
C106: C3-b. Willingness to accept contract provisions for flexibility to accommodate future changes to performance standards. | F106: =IF(ISBLANK(E106),"<<< Reference Required","") -> <<< Reference Required | H106: 1
C107: C3-c. Bid size (GPA may prefer contracts in an output range sufficient to allow GPA to contract with more than one project entity to diversify project risk). | F107: =IF(ISBLANK(E107),"<<< Reference Required","") -> <<< Reference Required | H107: 1
B108: C4. Contract term (1) | F108: =IF(ISBLANK(E108),"<<< Reference Required","") -> <<< Reference Required | H108: 1
C109: Discuss contract term. (NOTE: No firm capacity payments will be offered for this BID. GPA prefers proposals that have a longer contractual term.)
A110: D. CREDIT EVALUATION | F110: =IF(ISBLANK(E110),"<<< Reference Required","") -> <<< Reference Required | H110: 1
B111: D1. Debt and equity ratings (3)
B112: D2. Performance assurance (3) | F112: =IF(ISBLANK(E112),"<<< Reference Required","") -> <<< Reference Required | H112: 1
B113: D3. Financial ratio analysis (3) | F113: <<< Reference Required | H113: 1
B114: D4. Default risk (3) | F114: <<< Reference Required | H114: 1
B115: D5. Credit concentration and liquidity effect (3) | F115: <<< Reference Required | H115: 1
B116: D6. Enforceability of contractual credit terms (3) | F116: <<< Reference Required | H116: 1
B117: D7. Bidder revisions to contract templates that may affect credit requirements (3) | F117: <<< Reference Required | H117: 1
A118: E. Environmental Permits and Impacts | F118: <<< Reference Required | H118: =IF(F118="<<< Reference Required",1,0) -> 1
B119: The Bidder should identify environmental impacts associated with the proposed project and its plan to mitigate such impacts. Included in this section are technical environmental issues associated with air, water, solid waste, land use, noise, and other environmental issues. The following addresses specific environmental permitting considerations,
B120: E1. Permits (5)
C121: E1-a. Identify all permits, licenses, and environmental assessments and/or environmental impact statements required.
C122: E1-b. Provide a list of all Federal and GUAM permits, licenses, and environmental assessments and/or environmental impact statements required to construct and operate the project. Identify governmental agencies for issuing permits and licenses. | F122: =IF(ISBLANK(E122),"<<< Reference Required","") -> <<< Reference Required | H122: 1
C123: E1-c. Identify the governmental agencies which will issue or approve the required permits, licenses, and environmental assessments and/or environmental impact statements. Prepare timeline to complete acquisition of permits, licenses, and environmental assessments and/or environmental impact statements. | F123: =IF(ISBLANK(E123),"<<< Reference Required","") -> <<< Reference Required | H123: 1
C124: E1-d. Provide the anticipated timeline for seeking and receiving the required permits, licenses, and environmental assessments and/or environmental impact statements, using the execution date of the power purchase agreement as the starting point. Please include a narrative on the basis for the assumed timeline. | F124: =IF(ISBLANK(E124),"<<< Reference Required","") -> <<< Reference Required | H124: 1
B125: E2. Site Environmental Assessment (10) | F125: =IF(ISBLANK(E125),"<<< Reference Required","") -> <<< Reference Required | H125: 1
C126: Discuss proposed actions to address environmental issues stated in the Navy Environmental Assessment including
D127: • Site development
D128: • Air quality | F128: =IF(ISBLANK(E128),"<<< Reference Required","") -> <<< Reference Required | H128: 1
D129: • Water resources | F129: <<< Reference Required | H129: 1
D130: • Ecology | F130: <<< Reference Required | H130: =IF(F130="<<< Reference Required",1,0) -> 1
D131: • Land use | F131: <<< Reference Required | H131: 1
D132: • Cultural resources | F132: <<< Reference Required | H132: 1
D133: • Previous site use | F133: <<< Reference Required | H133: 1
D134: • Noise level | F134: <<< Reference Required | H134: 1
D135: • Aesthetic/visual | F135: <<< Reference Required | H135: 1
C136: E2-b. Identify a community support and a communications plan to gain support for or acceptance of the proposed project. Identify support for and/or acceptance of the proposed project by the affected communities and the general public. | F136: <<< Reference Required | H136: =IF(F136="<<< Reference Required",1,0) -> 1
D137: • Identify communities and other stakeholders that may be affected by the proposed project. How will they be affected?
D138: • How will affected communities and the general public be informed about the proposed project? | F138: =IF(ISBLANK(E138),"<<< Reference Required","") -> <<< Reference Required | H138: 1
D139: • Will the affected communities and the general public be given an opportunity to provide the developer with feedback and comments on the proposed project? What will the developer do with the feedback and comments received? | F139: =IF(ISBLANK(E139),"<<< Reference Required","") -> <<< Reference Required | H139: 1
A140: <<<<<<<<<< END >>>>>>>>>> | H140: =SUM(H8:H139) -> 99

Sheet Part 2 - Technical Data
A1: Invitation for Bid: GPA-012-23
A2: Renewable Energy Resource Acquisition for the Guam Power Authority (Phase IV)
A3: PART 2 - TECHNICAL DATA
B5: =CONCATENATE("BIDDER: ",'Workbook Instructions'!A6) -> BIDDER: | R5: =CONCATENATE("PROJECT NAME.: ",J21) -> PROJECT NAME.: <<<project name>>> | AA5: =CONCATENATE("BIDDER'S NO.: ",'Workbook Instructions'!A9) -> BIDDER'S NO.: <<< BIDDER'S BID NO >>>
D7: Bidder Information
B8: 1. | D8: Company Name:
D10: Primary Contact: | S10: Alternative Contact:
B11: 2. | D11: Contact Name: | S11: Contact Name:
D12: Company Name: | S12: Company Name:
D13: Street Address: | S13: Street Address:
D14: City: | S14: City:
D15: State & Zip Code: | S15: State & Zip Code:
D16: Phone Number: | S16: Phone Number:
D17: Fax Number: | S17: Fax Number:
D18: e-mail Address: | S18: e-mail Address:
D20: Renewable Energy Project Information
B21: 3. | D21: Project Name: | J21: <<<project name>>>
B22: 4. | D22: Unique Bid Number (1,2,3…): | J22: =+'Workbook Instructions'!A9 -> <<< BIDDER'S BID NO >>>
B23: 5. | D23: Renewable Technology (Select one): | J23: <renewable technology>
B24: 6. | D24: Street Address (or general location):
D25: City / County:
D26: State & Zip Code:
B28: 7. | D28: New or existing? (Click One Below)
F29: Existing Facility
F30: New Facility
B32: 8. | D32: Project Owners
D33: Owner 1: | N33: Owner 2: | X33: Owner 3:
D34: Contact: | N34: Contact: | X34: Contact:
D35: Street Address: | N35: Street Address: | X35: Street Address:
D36: City: | N36: City: | X36: City:
D37: State & Zip Code: | N37: State & Zip Code: | X37: State & Zip Code:
D38: Phone Number: | N38: Phone Number: | X38: Phone Number:
D39: e-mail Address: | N39: e-mail Address: | X39: e-mail Address:
D40: Ownership Share: | N40: Ownership Share: | X40: Ownership Share:
B42: 9. | D42: Project Technical Information
B43: 9.A | D43: Date of Initial Operation, (MM/DD/YYYY): | O43: << This is the date when the facility will initiate operation mainly for testing
B44: 9.B | D44: Agreement Beginning Date, (MM/DD/YYYY): | L44: 2022-01-01 | O44: << This is the Commercial Operation Date
B45: 9.C | D45: Nameplate Capacity, kW:
B46: 9.D | D46: ESS Capacity (MW and MWh): | N46: KW | Q46: KWH | R46: << This will be used for dispatching solar energy production for evaluation purposes.
B47: 9.E | D47: Estimated Annual Capacity Factor (net), %:
B48: 9.F | D48: Guaranteed Net Annual Generation, MWh/yr:
F49: Contract Year: 1 | K49: Contract Year: 11 | P49: Contract Year: 21
F50: 2 | K50: 12 | P50: 22
F51: 3 | K51: 13 | P51: 23
F52: 4 | K52: 14 | P52: 24
F53: 5 | K53: 15 | P53: 25
F54: 6 | K54: 16
F55: 7 | K55: 17
F56: 8 | K56: 18
F57: 9 | K57: 19
F58: 10 | K58: 20
B60: 9.G | D60: Expected Minimum Annual Generation, MWh/yr at 95% Confidence Level:
F61: Contract Year: 1 | K61: Contract Year: 11 | P61: Contract Year: 21
F62: 2 | K62: 12 | P62: 22
F63: 3 | K63: 13 | P63: 23
F64: 4 | K64: 14 | P64: 24
F65: 5 | K65: 15 | P65: 25
F66: 6 | K66: 16
F67: 7 | K67: 17
F68: 8 | K68: 18
F69: 9 | K69: 19
F70: 10 | K70: 20
A72: gpa2009_renew1 | B72: 9.H | D72: Guaranteed Success rate, AC-AC efficiency and availability for RI-ESS:
G73: 1% Ramp Rate | L73: Guaranteed | Q73: Guaranteed
G74: Guaranteed Success | L74: AC-AC | Q74: Availability
G75: Rate | L75: Efficiency
F76: Contract Year: 1 | K76: Contract Year: 1 | P76: Contract Year: 1
F77: 2 | K77: 2 | P77: 2
F78: 3 | K78: 3 | P78: 3
F79: 4 | K79: 4 | P79: 4
F80: 5 | K80: 5 | P80: 5
F81: 6 | K81: 6 | P81: 6
F82: 7 | K82: 7 | P82: 7
F83: 8 | K83: 8 | P83: 8
F84: 9 | K84: 9 | P84: 9
F85: 10 | K85: 10 | P85: 10
F86: 11 | K86: 11 | P86: 11
F87: 12 | K87: 12 | P87: 12
F88: 13 | K88: 13 | P88: 13
F89: 14 | K89: 14 | P89: 14
F90: 15 | K90: 15 | P90: 15
F91: 16 | K91: 16 | P91: 16
F92: 17 | K92: 17 | P92: 17
F93: 18 | K93: 18 | P93: 18
F94: 19 | K94: 19 | P94: 19
F95: 20 | K95: 20 | P95: 20
F96: 21 | K96: 21 | P96: 21
F97: 22 | K97: 22 | P97: 22
F98: 23 | K98: 23 | P98: 23
F99: 24 | K99: 24 | P99: 24
F100: 25 | K100: 25 | P100: 25
B104: 9.I | D104: Estimated Equivalent Availability Factor, %:
B105: 9.J | D105: Expected Project Life, years:
B107: 10. | D107: Interconnection and Transmission Information
B108: 10.A | D108: Interconnection Voltage:
B109: 10.B | D109: Interconnection Point / Substation:
B110: 10.C | D110: Interconnecting Transmission Line:
B111: 10.D | D111: Total Interconnection Cost ($):
B112: 10.E | D112: Total Interconnection Cost ($/MWH):
B114: 11. | D114: Power Purchase Agreement Information
B115: 11.A | D115: Term, years:
B116: 11.B | D116: Contract Net Capacity, KW:
B118: 12. | D118: Renewable Energy Project Generation Profile
D119: Provide the monthly estimated average net MWh per hour for every hour of the day. GPA requests for operation profile to evaluate the project. Annual projections must equal the Guaranteed net annual generation in 9.F above. Data provided shall be the solar production net output (excludes ESS & other losses/meter output). GPA will use this data to determine total daily production to be dispatched over its peak period (6PM -10PM) based the ESS capacity entered in 9D above.
G125: Hour:
D126: CON YR | E126: MON | F126: YR | G126: 0 | H126: 1 | I126: 2 | J126: 3 | K126: 4 | L126: 5 | M126: 6 | N126: 7 | O126: 8 | P126: 9 | Q126: 10 | R126: 11 | S126: 12 | T126: 13 | U126: 14 | V126: 15 | W126: 16 | X126: 17 | Y126: 18 | Z126: 19 | AA126: 20 | AB126: 21 | AC126: 22 | AD126: 23 | AE126: DAYS | AF126: Monthly Total MWh | AI126: CON YR
D127: 1 | E127: =TEXT(L44,"MMM") -> Jan | F127: =TEXT(L44,"yyyy") -> 2022 | AE127: =IF(OR(AND(E127="Feb",OR(F127=2020,OR(F127=2024,OR(F127=2028,OR(F127=2032,OR(F127=2036,F127=2040)))))),AND(E127="Feb",OR(F127=2044,OR(F127=2048,F127=2052)))),29,VLOOKUP(E127,Lookup!$B$2:$C$13,2,FALSE)) -> 31 | AF127: =SUM(G127:AD127)*AE127 -> 0 | AI127: =+D127 -> 1
D128: 1 | E128: =IF(E127="","",VLOOKUP(E127,Lookup!$A$2:$B$13,2,FALSE)) -> Feb | F128: =IF(E127=0,"",IF(E127="Dec",F127+1,F127)) -> 2022 | AE128: =IF(OR(AND(E128="Feb",OR(F128=2020,OR(F128=2024,OR(F128=2028,OR(F128=2032,OR(F128=2036,F128=2040)))))),AND(E128="Feb",OR(F128=2044,OR(F128=2048,F128=2052)))),29,VLOOKUP(E128,Lookup!$B$2:$C$13,2,FALSE)) -> 28 | AF128: 0 | AI128: =+D128 -> 1
D129: 1 | E129: =IF(E128="","",VLOOKUP(E128,Lookup!$A$2:$B$13,2,FALSE)) -> Mar | F129: 2022 | AE129: =IF(OR(AND(E129="Feb",OR(F129=2020,OR(F129=2024,OR(F129=2028,OR(F129=2032,OR(F129=2036,F129=2040)))))),AND(E129="Feb",OR(F129=2044,OR(F129=2048,F129=2052)))),29,VLOOKUP(E129,Lookup!$B$2:$C$13,2,FALSE)) -> 31 | AF129: 0 | AI129: 1
D130: 1 | E130: =IF(E129="","",VLOOKUP(E129,Lookup!$A$2:$B$13,2,FALSE)) -> Apr | F130: 2022 | AE130: =IF(OR(AND(E130="Feb",OR(F130=2020,OR(F130=2024,OR(F130=2028,OR(F130=2032,OR(F130=2036,F130=2040)))))),AND(E130="Feb",OR(F130=2044,OR(F130=2048,F130=2052)))),29,VLOOKUP(E130,Lookup!$B$2:$C$13,2,FALSE)) -> 30 | AF130: 0 | AI130: 1
D131: 1 | E131: =IF(E130="","",VLOOKUP(E130,Lookup!$A$2:$B$13,2,FALSE)) -> May | F131: 2022 | AE131: =IF(OR(AND(E131="Feb",OR(F131=2020,OR(F131=2024,OR(F131=2028,OR(F131=2032,OR(F131=2036,F131=2040)))))),AND(E131="Feb",OR(F131=2044,OR(F131=2048,F131=2052)))),29,VLOOKUP(E131,Lookup!$B$2:$C$13,2,FALSE)) -> 31 | AF131: 0 | AI131: 1
D132: 1 | E132: =IF(E131="","",VLOOKUP(E131,Lookup!$A$2:$B$13,2,FALSE)) -> Jun | F132: 2022 | AE132: =IF(OR(AND(E132="Feb",OR(F132=2020,OR(F132=2024,OR(F132=2028,OR(F132=2032,OR(F132=2036,F132=2040)))))),AND(E132="Feb",OR(F132=2044,OR(F132=2048,F132=2052)))),29,VLOOKUP(E132,Lookup!$B$2:$C$13,2,FALSE)) -> 30 | AF132: 0 | AI132: 1
D133: 1 | E133: =IF(E132="","",VLOOKUP(E132,Lookup!$A$2:$B$13,2,FALSE)) -> Jul | F133: 2022 | AE133: =IF(OR(AND(E133="Feb",OR(F133=2020,OR(F133=2024,OR(F133=2028,OR(F133=2032,OR(F133=2036,F133=2040)))))),AND(E133="Feb",OR(F133=2044,OR(F133=2048,F133=2052)))),29,VLOOKUP(E133,Lookup!$B$2:$C$13,2,FALSE)) -> 31 | AF133: 0 | AI133: 1
D134: 1 | E134: =IF(E133="","",VLOOKUP(E133,Lookup!$A$2:$B$13,2,FALSE)) -> Aug | F134: 2022 | AE134: =IF(OR(AND(E134="Feb",OR(F134=2020,OR(F134=2024,OR(F134=2028,OR(F134=2032,OR(F134=2036,F134=2040)))))),AND(E134="Feb",OR(F134=2044,OR(F134=2048,F134=2052)))),29,VLOOKUP(E134,Lookup!$B$2:$C$13,2,FALSE)) -> 31 | AF134: 0 | AI134: 1
D135: 1 | E135: =IF(E134="","",VLOOKUP(E134,Lookup!$A$2:$B$13,2,FALSE)) -> Sep | F135: 2022 | AE135: =IF(OR(AND(E135="Feb",OR(F135=2020,OR(F135=2024,OR(F135=2028,OR(F135=2032,OR(F135=2036,F135=2040)))))),AND(E135="Feb",OR(F135=2044,OR(F135=2048,F135=2052)))),29,VLOOKUP(E135,Lookup!$B$2:$C$13,2,FALSE)) -> 30 | AF135: 0 | AI135: 1
D136: 1 | E136: =IF(E135="","",VLOOKUP(E135,Lookup!$A$2:$B$13,2,FALSE)) -> Oct | F136: 2022 | AE136: =IF(OR(AND(E136="Feb",OR(F136=2020,OR(F136=2024,OR(F136=2028,OR(F136=2032,OR(F136=2036,F136=2040)))))),AND(E136="Feb",OR(F136=2044,OR(F136=2048,F136=2052)))),29,VLOOKUP(E136,Lookup!$B$2:$C$13,2,FALSE)) -> 31 | AF136: 0 | AI136: 1
D137: 1 | E137: =IF(E136="","",VLOOKUP(E136,Lookup!$A$2:$B$13,2,FALSE)) -> Nov | F137: 2022 | AE137: =IF(OR(AND(E137="Feb",OR(F137=2020,OR(F137=2024,OR(F137=2028,OR(F137=2032,OR(F137=2036,F137=2040)))))),AND(E137="Feb",OR(F137=2044,OR(F137=2048,F137=2052)))),29,VLOOKUP(E137,Lookup!$B$2:$C$13,2,FALSE)) -> 30 | AF137: 0 | AI137: 1
D138: 1 | E138: =IF(E137="","",VLOOKUP(E137,Lookup!$A$2:$B$13,2,FALSE)) -> Dec | F138: 2022 | AE138: =IF(OR(AND(E138="Feb",OR(F138=2020,OR(F138=2024,OR(F138=2028,OR(F138=2032,OR(F138=2036,F138=2040)))))),AND(E138="Feb",OR(F138=2044,OR(F138=2048,F138=2052)))),29,VLOOKUP(E138,Lookup!$B$2:$C$13,2,FALSE)) -> 31 | AF138: 0 | AI138: 1
D139: =+D127+1 -> 2 | E139: =IF(E138="","",VLOOKUP(E138,Lookup!$A$2:$B$13,2,FALSE)) -> Jan | F139: 2023 | AE139: =IF(OR(AND(E139="Feb",OR(F139=2020,OR(F139=2024,OR(F139=2028,OR(F139=2032,OR(F139=2036,F139=2040)))))),AND(E139="Feb",OR(F139=2044,OR(F139=2048,F139=2052)))),29,VLOOKUP(E139,Lookup!$B$2:$C$13,2,FALSE)) -> 31 | AF139: 0 | AI139: 2
D140: =+D128+1 -> 2 | E140: =IF(E139="","",VLOOKUP(E139,Lookup!$A$2:$B$13,2,FALSE)) -> Feb | F140: =IF(E139=0,"",IF(E139="Dec",F139+1,F139)) -> 2023 | AE140: =IF(OR(AND(E140="Feb",OR(F140=2020,OR(F140=2024,OR(F140=2028,OR(F140=2032,OR(F140=2036,F140=2040)))))),AND(E140="Feb",OR(F140=2044,OR(F140=2048,F140=2052)))),29,VLOOKUP(E140,Lookup!$B$2:$C$13,2,FALSE)) -> 28 | AF140: 0 | AI140: 2
D141: 2 | E141: =IF(E140="","",VLOOKUP(E140,Lookup!$A$2:$B$13,2,FALSE)) -> Mar | F141: 2023 | AE141: =IF(OR(AND(E141="Feb",OR(F141=2020,OR(F141=2024,OR(F141=2028,OR(F141=2032,OR(F141=2036,F141=2040)))))),AND(E141="Feb",OR(F141=2044,OR(F141=2048,F141=2052)))),29,VLOOKUP(E141,Lookup!$B$2:$C$13,2,FALSE)) -> 31 | AF141: 0 | AI141: 2
D142: 2 | E142: =IF(E141="","",VLOOKUP(E141,Lookup!$A$2:$B$13,2,FALSE)) -> Apr | F142: 2023 | AE142: =IF(OR(AND(E142="Feb",OR(F142=2020,OR(F142=2024,OR(F142=2028,OR(F142=2032,OR(F142=2036,F142=2040)))))),AND(E142="Feb",OR(F142=2044,OR(F142=2048,F142=2052)))),29,VLOOKUP(E142,Lookup!$B$2:$C$13,2,FALSE)) -> 30 | AF142: 0 | AI142: 2
D143: 2 | E143: =IF(E142="","",VLOOKUP(E142,Lookup!$A$2:$B$13,2,FALSE)) -> May | F143: 2023 | AE143: =IF(OR(AND(E143="Feb",OR(F143=2020,OR(F143=2024,OR(F143=2028,OR(F143=2032,OR(F143=2036,F143=2040)))))),AND(E143="Feb",OR(F143=2044,OR(F143=2048,F143=2052)))),29,VLOOKUP(E143,Lookup!$B$2:$C$13,2,FALSE)) -> 31 | AF143: 0 | AI143: 2
D144: 2 | E144: =IF(E143="","",VLOOKUP(E143,Lookup!$A$2:$B$13,2,FALSE)) -> Jun | F144: 2023 | AE144: =IF(OR(AND(E144="Feb",OR(F144=2020,OR(F144=2024,OR(F144=2028,OR(F144=2032,OR(F144=2036,F144=2040)))))),AND(E144="Feb",OR(F144=2044,OR(F144=2048,F144=2052)))),29,VLOOKUP(E144,Lookup!$B$2:$C$13,2,FALSE)) -> 30 | AF144: 0 | AI144: 2
D145: 2 | E145: =IF(E144="","",VLOOKUP(E144,Lookup!$A$2:$B$13,2,FALSE)) -> Jul | F145: 2023 | AE145: =IF(OR(AND(E145="Feb",OR(F145=2020,OR(F145=2024,OR(F145=2028,OR(F145=2032,OR(F145=2036,F145=2040)))))),AND(E145="Feb",OR(F145=2044,OR(F145=2048,F145=2052)))),29,VLOOKUP(E145,Lookup!$B$2:$C$13,2,FALSE)) -> 31 | AF145: 0 | AI145: 2
D146: 2 | E146: =IF(E145="","",VLOOKUP(E145,Lookup!$A$2:$B$13,2,FALSE)) -> Aug | F146: 2023 | AE146: =IF(OR(AND(E146="Feb",OR(F146=2020,OR(F146=2024,OR(F146=2028,OR(F146=2032,OR(F146=2036,F146=2040)))))),AND(E146="Feb",OR(F146=2044,OR(F146=2048,F146=2052)))),29,VLOOKUP(E146,Lookup!$B$2:$C$13,2,FALSE)) -> 31 | AF146: 0 | AI146: 2
D147: 2 | E147: =IF(E146="","",VLOOKUP(E146,Lookup!$A$2:$B$13,2,FALSE)) -> Sep | F147: 2023 | AE147: =IF(OR(AND(E147="Feb",OR(F147=2020,OR(F147=2024,OR(F147=2028,OR(F147=2032,OR(F147=2036,F147=2040)))))),AND(E147="Feb",OR(F147=2044,OR(F147=2048,F147=2052)))),29,VLOOKUP(E147,Lookup!$B$2:$C$13,2,FALSE)) -> 30 | AF147: 0 | AI147: 2
D148: 2 | E148: =IF(E147="","",VLOOKUP(E147,Lookup!$A$2:$B$13,2,FALSE)) -> Oct | F148: 2023 | AE148: =IF(OR(AND(E148="Feb",OR(F148=2020,OR(F148=2024,OR(F148=2028,OR(F148=2032,OR(F148=2036,F148=2040)))))),AND(E148="Feb",OR(F148=2044,OR(F148=2048,F148=2052)))),29,VLOOKUP(E148,Lookup!$B$2:$C$13,2,FALSE)) -> 31 | AF148: 0 | AI148: 2
D149: 2 | E149: =IF(E148="","",VLOOKUP(E148,Lookup!$A$2:$B$13,2,FALSE)) -> Nov | F149: 2023 | AE149: =IF(OR(AND(E149="Feb",OR(F149=2020,OR(F149=2024,OR(F149=2028,OR(F149=2032,OR(F149=2036,F149=2040)))))),AND(E149="Feb",OR(F149=2044,OR(F149=2048,F149=2052)))),29,VLOOKUP(E149,Lookup!$B$2:$C$13,2,FALSE)) -> 30 | AF149: 0 | AI149: 2
D150: 2 | E150: =IF(E149="","",VLOOKUP(E149,Lookup!$A$2:$B$13,2,FALSE)) -> Dec | F150: 2023 | AE150: =IF(OR(AND(E150="Feb",OR(F150=2020,OR(F150=2024,OR(F150=2028,OR(F150=2032,OR(F150=2036,F150=2040)))))),AND(E150="Feb",OR(F150=2044,OR(F150=2048,F150=2052)))),29,VLOOKUP(E150,Lookup!$B$2:$C$13,2,FALSE)) -> 31 | AF150: 0 | AI150: 2
D151: 3 | E151: =IF(E150="","",VLOOKUP(E150,Lookup!$A$2:$B$13,2,FALSE)) -> Jan | F151: 2024 | AE151: =IF(OR(AND(E151="Feb",OR(F151=2020,OR(F151=2024,OR(F151=2028,OR(F151=2032,OR(F151=2036,F151=2040)))))),AND(E151="Feb",OR(F151=2044,OR(F151=2048,F151=2052)))),29,VLOOKUP(E151,Lookup!$B$2:$C$13,2,FALSE)) -> 31 | AF151: 0 | AI151: =+D151 -> 3
D152: 3 | E152: =IF(E151="","",VLOOKUP(E151,Lookup!$A$2:$B$13,2,FALSE)) -> Feb | F152: 2024 | AE152: =IF(OR(AND(E152="Feb",OR(F152=2020,OR(F152=2024,OR(F152=2028,OR(F152=2032,OR(F152=2036,F152=2040)))))),AND(E152="Feb",OR(F152=2044,OR(F152=2048,F152=2052)))),29,VLOOKUP(E152,Lookup!$B$2:$C$13,2,FALSE)) -> 29 | AF152: 0 | AI152: 3
D153: 3 | E153: =IF(E152="","",VLOOKUP(E152,Lookup!$A$2:$B$13,2,FALSE)) -> Mar | F153: 2024 | AE153: =IF(OR(AND(E153="Feb",OR(F153=2020,OR(F153=2024,OR(F153=2028,OR(F153=2032,OR(F153=2036,F153=2040)))))),AND(E153="Feb",OR(F153=2044,OR(F153=2048,F153=2052)))),29,VLOOKUP(E153,Lookup!$B$2:$C$13,2,FALSE)) -> 31 | AF153: 0 | AI153: 3
D154: 3 | E154: =IF(E153="","",VLOOKUP(E153,Lookup!$A$2:$B$13,2,FALSE)) -> Apr | F154: 2024 | AE154: =IF(OR(AND(E154="Feb",OR(F154=2020,OR(F154=2024,OR(F154=2028,OR(F154=2032,OR(F154=2036,F154=2040)))))),AND(E154="Feb",OR(F154=2044,OR(F154=2048,F154=2052)))),29,VLOOKUP(E154,Lookup!$B$2:$C$13,2,FALSE)) -> 30 | AF154: 0 | AI154: 3
D155: 3 | E155: =IF(E154="","",VLOOKUP(E154,Lookup!$A$2:$B$13,2,FALSE)) -> May | F155: 2024 | AE155: =IF(OR(AND(E155="Feb",OR(F155=2020,OR(F155=2024,OR(F155=2028,OR(F155=2032,OR(F155=2036,F155=2040)))))),AND(E155="Feb",OR(F155=2044,OR(F155=2048,F155=2052)))),29,VLOOKUP(E155,Lookup!$B$2:$C$13,2,FALSE)) -> 31 | AF155: 0 | AI155: 3
D156: 3 | E156: =IF(E155="","",VLOOKUP(E155,Lookup!$A$2:$B$13,2,FALSE)) -> Jun | F156: 2024 | AE156: =IF(OR(AND(E156="Feb",OR(F156=2020,OR(F156=2024,OR(F156=2028,OR(F156=2032,OR(F156=2036,F156=2040)))))),AND(E156="Feb",OR(F156=2044,OR(F156=2048,F156=2052)))),29,VLOOKUP(E156,Lookup!$B$2:$C$13,2,FALSE)) -> 30 | AF156: 0 | AI156: 3
D157: 3 | E157: =IF(E156="","",VLOOKUP(E156,Lookup!$A$2:$B$13,2,FALSE)) -> Jul | F157: 2024 | AE157: =IF(OR(AND(E157="Feb",OR(F157=2020,OR(F157=2024,OR(F157=2028,OR(F157=2032,OR(F157=2036,F157=2040)))))),AND(E157="Feb",OR(F157=2044,OR(F157=2048,F157=2052)))),29,VLOOKUP(E157,Lookup!$B$2:$C$13,2,FALSE)) -> 31 | AF157: 0 | AI157: 3
D158: 3 | E158: =IF(E157="","",VLOOKUP(E157,Lookup!$A$2:$B$13,2,FALSE)) -> Aug | F158: 2024 | AE158: =IF(OR(AND(E158="Feb",OR(F158=2020,OR(F158=2024,OR(F158=2028,OR(F158=2032,OR(F158=2036,F158=2040)))))),AND(E158="Feb",OR(F158=2044,OR(F158=2048,F158=2052)))),29,VLOOKUP(E158,Lookup!$B$2:$C$13,2,FALSE)) -> 31 | AF158: 0 | AI158: 3
D159: 3 | E159: =IF(E158="","",VLOOKUP(E158,Lookup!$A$2:$B$13,2,FALSE)) -> Sep | F159: 2024 | AE159: =IF(OR(AND(E159="Feb",OR(F159=2020,OR(F159=2024,OR(F159=2028,OR(F159=2032,OR(F159=2036,F159=2040)))))),AND(E159="Feb",OR(F159=2044,OR(F159=2048,F159=2052)))),29,VLOOKUP(E159,Lookup!$B$2:$C$13,2,FALSE)) -> 30 | AF159: 0 | AI159: 3
D160: 3 | E160: =IF(E159="","",VLOOKUP(E159,Lookup!$A$2:$B$13,2,FALSE)) -> Oct | F160: 2024 | AE160: =IF(OR(AND(E160="Feb",OR(F160=2020,OR(F160=2024,OR(F160=2028,OR(F160=2032,OR(F160=2036,F160=2040)))))),AND(E160="Feb",OR(F160=2044,OR(F160=2048,F160=2052)))),29,VLOOKUP(E160,Lookup!$B$2:$C$13,2,FALSE)) -> 31 | AF160: 0 | AI160: 3
D161: 3 | E161: =IF(E160="","",VLOOKUP(E160,Lookup!$A$2:$B$13,2,FALSE)) -> Nov | F161: 2024 | AE161: =IF(OR(AND(E161="Feb",OR(F161=2020,OR(F161=2024,OR(F161=2028,OR(F161=2032,OR(F161=2036,F161=2040)))))),AND(E161="Feb",OR(F161=2044,OR(F161=2048,F161=2052)))),29,VLOOKUP(E161,Lookup!$B$2:$C$13,2,FALSE)) -> 30 | AF161: 0 | AI161: 3
D162: 3 | E162: =IF(E161="","",VLOOKUP(E161,Lookup!$A$2:$B$13,2,FALSE)) -> Dec | F162: 2024 | AE162: =IF(OR(AND(E162="Feb",OR(F162=2020,OR(F162=2024,OR(F162=2028,OR(F162=2032,OR(F162=2036,F162=2040)))))),AND(E162="Feb",OR(F162=2044,OR(F162=2048,F162=2052)))),29,VLOOKUP(E162,Lookup!$B$2:$C$13,2,FALSE)) -> 31 | AF162: 0 | AI162: 3
D163: 4 | E163: =IF(E162="","",VLOOKUP(E162,Lookup!$A$2:$B$13,2,FALSE)) -> Jan | F163: 2025 | AE163: =IF(OR(AND(E163="Feb",OR(F163=2020,OR(F163=2024,OR(F163=2028,OR(F163=2032,OR(F163=2036,F163=2040)))))),AND(E163="Feb",OR(F163=2044,OR(F163=2048,F163=2052)))),29,VLOOKUP(E163,Lookup!$B$2:$C$13,2,FALSE)) -> 31 | AF163: 0 | AI163: 4
D164: 4 | E164: =IF(E163="","",VLOOKUP(E163,Lookup!$A$2:$B$13,2,FALSE)) -> Feb | F164: 2025 | AE164: =IF(OR(AND(E164="Feb",OR(F164=2020,OR(F164=2024,OR(F164=2028,OR(F164=2032,OR(F164=2036,F164=2040)))))),AND(E164="Feb",OR(F164=2044,OR(F164=2048,F164=2052)))),29,VLOOKUP(E164,Lookup!$B$2:$C$13,2,FALSE)) -> 28 | AF164: 0 | AI164: 4
D165: 4 | E165: =IF(E164="","",VLOOKUP(E164,Lookup!$A$2:$B$13,2,FALSE)) -> Mar | F165: 2025 | AE165: =IF(OR(AND(E165="Feb",OR(F165=2020,OR(F165=2024,OR(F165=2028,OR(F165=2032,OR(F165=2036,F165=2040)))))),AND(E165="Feb",OR(F165=2044,OR(F165=2048,F165=2052)))),29,VLOOKUP(E165,Lookup!$B$2:$C$13,2,FALSE)) -> 31 | AF165: 0 | AI165: 4
D166: 4 | E166: =IF(E165="","",VLOOKUP(E165,Lookup!$A$2:$B$13,2,FALSE)) -> Apr | F166: 2025 | AE166: =IF(OR(AND(E166="Feb",OR(F166=2020,OR(F166=2024,OR(F166=2028,OR(F166=2032,OR(F166=2036,F166=2040)))))),AND(E166="Feb",OR(F166=2044,OR(F166=2048,F166=2052)))),29,VLOOKUP(E166,Lookup!$B$2:$C$13,2,FALSE)) -> 30 | AF166: 0 | AI166: 4
D167: 4 | E167: =IF(E166="","",VLOOKUP(E166,Lookup!$A$2:$B$13,2,FALSE)) -> May | F167: 2025 | AE167: =IF(OR(AND(E167="Feb",OR(F167=2020,OR(F167=2024,OR(F167=2028,OR(F167=2032,OR(F167=2036,F167=2040)))))),AND(E167="Feb",OR(F167=2044,OR(F167=2048,F167=2052)))),29,VLOOKUP(E167,Lookup!$B$2:$C$13,2,FALSE)) -> 31 | AF167: 0 | AI167: 4
D168: 4 | E168: =IF(E167="","",VLOOKUP(E167,Lookup!$A$2:$B$13,2,FALSE)) -> Jun | F168: 2025 | AE168: =IF(OR(AND(E168="Feb",OR(F168=2020,OR(F168=2024,OR(F168=2028,OR(F168=2032,OR(F168=2036,F168=2040)))))),AND(E168="Feb",OR(F168=2044,OR(F168=2048,F168=2052)))),29,VLOOKUP(E168,Lookup!$B$2:$C$13,2,FALSE)) -> 30 | AF168: 0 | AI168: 4
D169: 4 | E169: =IF(E168="","",VLOOKUP(E168,Lookup!$A$2:$B$13,2,FALSE)) -> Jul | F169: 2025 | AE169: =IF(OR(AND(E169="Feb",OR(F169=2020,OR(F169=2024,OR(F169=2028,OR(F169=2032,OR(F169=2036,F169=2040)))))),AND(E169="Feb",OR(F169=2044,OR(F169=2048,F169=2052)))),29,VLOOKUP(E169,Lookup!$B$2:$C$13,2,FALSE)) -> 31 | AF169: 0 | AI169: 4
D170: 4 | E170: =IF(E169="","",VLOOKUP(E169,Lookup!$A$2:$B$13,2,FALSE)) -> Aug | F170: 2025 | AE170: =IF(OR(AND(E170="Feb",OR(F170=2020,OR(F170=2024,OR(F170=2028,OR(F170=2032,OR(F170=2036,F170=2040)))))),AND(E170="Feb",OR(F170=2044,OR(F170=2048,F170=2052)))),29,VLOOKUP(E170,Lookup!$B$2:$C$13,2,FALSE)) -> 31 | AF170: 0 | AI170: 4
D171: 4 | E171: =IF(E170="","",VLOOKUP(E170,Lookup!$A$2:$B$13,2,FALSE)) -> Sep | F171: 2025 | AE171: =IF(OR(AND(E171="Feb",OR(F171=2020,OR(F171=2024,OR(F171=2028,OR(F171=2032,OR(F171=2036,F171=2040)))))),AND(E171="Feb",OR(F171=2044,OR(F171=2048,F171=2052)))),29,VLOOKUP(E171,Lookup!$B$2:$C$13,2,FALSE)) -> 30 | AF171: 0 | AI171: 4
D172: 4 | E172: =IF(E171="","",VLOOKUP(E171,Lookup!$A$2:$B$13,2,FALSE)) -> Oct | F172: 2025 | AE172: =IF(OR(AND(E172="Feb",OR(F172=2020,OR(F172=2024,OR(F172=2028,OR(F172=2032,OR(F172=2036,F172=2040)))))),AND(E172="Feb",OR(F172=2044,OR(F172=2048,F172=2052)))),29,VLOOKUP(E172,Lookup!$B$2:$C$13,2,FALSE)) -> 31 | AF172: 0 | AI172: 4
D173: 4 | E173: =IF(E172="","",VLOOKUP(E172,Lookup!$A$2:$B$13,2,FALSE)) -> Nov | F173: 2025 | AE173: =IF(OR(AND(E173="Feb",OR(F173=2020,OR(F173=2024,OR(F173=2028,OR(F173=2032,OR(F173=2036,F173=2040)))))),AND(E173="Feb",OR(F173=2044,OR(F173=2048,F173=2052)))),29,VLOOKUP(E173,Lookup!$B$2:$C$13,2,FALSE)) -> 30 | AF173: 0 | AI173: 4
D174: 4 | E174: =IF(E173="","",VLOOKUP(E173,Lookup!$A$2:$B$13,2,FALSE)) -> Dec | F174: 2025 | AE174: =IF(OR(AND(E174="Feb",OR(F174=2020,OR(F174=2024,OR(F174=2028,OR(F174=2032,OR(F174=2036,F174=2040)))))),AND(E174="Feb",OR(F174=2044,OR(F174=2048,F174=2052)))),29,VLOOKUP(E174,Lookup!$B$2:$C$13,2,FALSE)) -> 31 | AF174: 0 | AI174: 4
D175: 5 | E175: =IF(E174="","",VLOOKUP(E174,Lookup!$A$2:$B$13,2,FALSE)) -> Jan | F175: 2026 | AE175: =IF(OR(AND(E175="Feb",OR(F175=2020,OR(F175=2024,OR(F175=2028,OR(F175=2032,OR(F175=2036,F175=2040)))))),AND(E175="Feb",OR(F175=2044,OR(F175=2048,F175=2052)))),29,VLOOKUP(E175,Lookup!$B$2:$C$13,2,FALSE)) -> 31 | AF175: 0 | AI175: =+D175 -> 5
D176: 5 | E176: =IF(E175="","",VLOOKUP(E175,Lookup!$A$2:$B$13,2,FALSE)) -> Feb | F176: 2026 | AE176: =IF(OR(AND(E176="Feb",OR(F176=2020,OR(F176=2024,OR(F176=2028,OR(F176=2032,OR(F176=2036,F176=2040)))))),AND(E176="Feb",OR(F176=2044,OR(F176=2048,F176=2052)))),29,VLOOKUP(E176,Lookup!$B$2:$C$13,2,FALSE)) -> 28 | AF176: 0 | AI176: 5
D177: 5 | E177: =IF(E176="","",VLOOKUP(E176,Lookup!$A$2:$B$13,2,FALSE)) -> Mar | F177: 2026 | AE177: =IF(OR(AND(E177="Feb",OR(F177=2020,OR(F177=2024,OR(F177=2028,OR(F177=2032,OR(F177=2036,F177=2040)))))),AND(E177="Feb",OR(F177=2044,OR(F177=2048,F177=2052)))),29,VLOOKUP(E177,Lookup!$B$2:$C$13,2,FALSE)) -> 31 | AF177: 0 | AI177: 5
D178: 5 | E178: =IF(E177="","",VLOOKUP(E177,Lookup!$A$2:$B$13,2,FALSE)) -> Apr | F178: 2026 | AE178: =IF(OR(AND(E178="Feb",OR(F178=2020,OR(F178=2024,OR(F178=2028,OR(F178=2032,OR(F178=2036,F178=2040)))))),AND(E178="Feb",OR(F178=2044,OR(F178=2048,F178=2052)))),29,VLOOKUP(E178,Lookup!$B$2:$C$13,2,FALSE)) -> 30 | AF178: 0 | AI178: 5
D179: 5 | E179: =IF(E178="","",VLOOKUP(E178,Lookup!$A$2:$B$13,2,FALSE)) -> May | F179: 2026 | AE179: =IF(OR(AND(E179="Feb",OR(F179=2020,OR(F179=2024,OR(F179=2028,OR(F179=2032,OR(F179=2036,F179=2040)))))),AND(E179="Feb",OR(F179=2044,OR(F179=2048,F179=2052)))),29,VLOOKUP(E179,Lookup!$B$2:$C$13,2,FALSE)) -> 31 | AF179: 0 | AI179: 5
D180: 5 | E180: =IF(E179="","",VLOOKUP(E179,Lookup!$A$2:$B$13,2,FALSE)) -> Jun | F180: 2026 | AE180: =IF(OR(AND(E180="Feb",OR(F180=2020,OR(F180=2024,OR(F180=2028,OR(F180=2032,OR(F180=2036,F180=2040)))))),AND(E180="Feb",OR(F180=2044,OR(F180=2048,F180=2052)))),29,VLOOKUP(E180,Lookup!$B$2:$C$13,2,FALSE)) -> 30 | AF180: 0 | AI180: 5
D181: 5 | E181: =IF(E180="","",VLOOKUP(E180,Lookup!$A$2:$B$13,2,FALSE)) -> Jul | F181: 2026 | AE181: =IF(OR(AND(E181="Feb",OR(F181=2020,OR(F181=2024,OR(F181=2028,OR(F181=2032,OR(F181=2036,F181=2040)))))),AND(E181="Feb",OR(F181=2044,OR(F181=2048,F181=2052)))),29,VLOOKUP(E181,Lookup!$B$2:$C$13,2,FALSE)) -> 31 | AF181: 0 | AI181: 5
D182: 5 | E182: =IF(E181="","",VLOOKUP(E181,Lookup!$A$2:$B$13,2,FALSE)) -> Aug | F182: 2026 | AE182: =IF(OR(AND(E182="Feb",OR(F182=2020,OR(F182=2024,OR(F182=2028,OR(F182=2032,OR(F182=2036,F182=2040)))))),AND(E182="Feb",OR(F182=2044,OR(F182=2048,F182=2052)))),29,VLOOKUP(E182,Lookup!$B$2:$C$13,2,FALSE)) -> 31 | AF182: 0 | AI182: 5
D183: 5 | E183: =IF(E182="","",VLOOKUP(E182,Lookup!$A$2:$B$13,2,FALSE)) -> Sep | F183: 2026 | AE183: =IF(OR(AND(E183="Feb",OR(F183=2020,OR(F183=2024,OR(F183=2028,OR(F183=2032,OR(F183=2036,F183=2040)))))),AND(E183="Feb",OR(F183=2044,OR(F183=2048,F183=2052)))),29,VLOOKUP(E183,Lookup!$B$2:$C$13,2,FALSE)) -> 30 | AF183: 0 | AI183: 5
D184: 5 | E184: =IF(E183="","",VLOOKUP(E183,Lookup!$A$2:$B$13,2,FALSE)) -> Oct | F184: 2026 | AE184: =IF(OR(AND(E184="Feb",OR(F184=2020,OR(F184=2024,OR(F184=2028,OR(F184=2032,OR(F184=2036,F184=2040)))))),AND(E184="Feb",OR(F184=2044,OR(F184=2048,F184=2052)))),29,VLOOKUP(E184,Lookup!$B$2:$C$13,2,FALSE)) -> 31 | AF184: 0 | AI184: 5
D185: 5 | E185: =IF(E184="","",VLOOKUP(E184,Lookup!$A$2:$B$13,2,FALSE)) -> Nov | F185: 2026 | AE185: =IF(OR(AND(E185="Feb",OR(F185=2020,OR(F185=2024,OR(F185=2028,OR(F185=2032,OR(F185=2036,F185=2040)))))),AND(E185="Feb",OR(F185=2044,OR(F185=2048,F185=2052)))),29,VLOOKUP(E185,Lookup!$B$2:$C$13,2,FALSE)) -> 30 | AF185: 0 | AI185: 5
D186: 5 | E186: =IF(E185="","",VLOOKUP(E185,Lookup!$A$2:$B$13,2,FALSE)) -> Dec | F186: 2026 | AE186: =IF(OR(AND(E186="Feb",OR(F186=2020,OR(F186=2024,OR(F186=2028,OR(F186=2032,OR(F186=2036,F186=2040)))))),AND(E186="Feb",OR(F186=2044,OR(F186=2048,F186=2052)))),29,VLOOKUP(E186,Lookup!$B$2:$C$13,2,FALSE)) -> 31 | AF186: 0 | AI186: 5
D187: 6 | E187: =IF(E186="","",VLOOKUP(E186,Lookup!$A$2:$B$13,2,FALSE)) -> Jan | F187: 2027 | AE187: =IF(OR(AND(E187="Feb",OR(F187=2020,OR(F187=2024,OR(F187=2028,OR(F187=2032,OR(F187=2036,F187=2040)))))),AND(E187="Feb",OR(F187=2044,OR(F187=2048,F187=2052)))),29,VLOOKUP(E187,Lookup!$B$2:$C$13,2,FALSE)) -> 31 | AF187: 0 | AI187: 6
D188: 6 | E188: =IF(E187="","",VLOOKUP(E187,Lookup!$A$2:$B$13,2,FALSE)) -> Feb | F188: 2027 | AE188: =IF(OR(AND(E188="Feb",OR(F188=2020,OR(F188=2024,OR(F188=2028,OR(F188=2032,OR(F188=2036,F188=2040)))))),AND(E188="Feb",OR(F188=2044,OR(F188=2048,F188=2052)))),29,VLOOKUP(E188,Lookup!$B$2:$C$13,2,FALSE)) -> 28 | AF188: 0 | AI188: 6
D189: 6 | E189: =IF(E188="","",VLOOKUP(E188,Lookup!$A$2:$B$13,2,FALSE)) -> Mar | F189: 2027 | AE189: =IF(OR(AND(E189="Feb",OR(F189=2020,OR(F189=2024,OR(F189=2028,OR(F189=2032,OR(F189=2036,F189=2040)))))),AND(E189="Feb",OR(F189=2044,OR(F189=2048,F189=2052)))),29,VLOOKUP(E189,Lookup!$B$2:$C$13,2,FALSE)) -> 31 | AF189: 0 | AI189: 6
D190: 6 | E190: =IF(E189="","",VLOOKUP(E189,Lookup!$A$2:$B$13,2,FALSE)) -> Apr | F190: 2027 | AE190: =IF(OR(AND(E190="Feb",OR(F190=2020,OR(F190=2024,OR(F190=2028,OR(F190=2032,OR(F190=2036,F190=2040)))))),AND(E190="Feb",OR(F190=2044,OR(F190=2048,F190=2052)))),29,VLOOKUP(E190,Lookup!$B$2:$C$13,2,FALSE)) -> 30 | AF190: 0 | AI190: 6
D191: 6 | E191: =IF(E190="","",VLOOKUP(E190,Lookup!$A$2:$B$13,2,FALSE)) -> May | F191: 2027 | AE191: =IF(OR(AND(E191="Feb",OR(F191=2020,OR(F191=2024,OR(F191=2028,OR(F191=2032,OR(F191=2036,F191=2040)))))),AND(E191="Feb",OR(F191=2044,OR(F191=2048,F191=2052)))),29,VLOOKUP(E191,Lookup!$B$2:$C$13,2,FALSE)) -> 31 | AF191: =SUM(G191:AD191)*AE191 -> 0 | AI191: 6
D192: 6 | E192: =IF(E191="","",VLOOKUP(E191,Lookup!$A$2:$B$13,2,FALSE)) -> Jun | F192: 2027 | AE192: =IF(OR(AND(E192="Feb",OR(F192=2020,OR(F192=2024,OR(F192=2028,OR(F192=2032,OR(F192=2036,F192=2040)))))),AND(E192="Feb",OR(F192=2044,OR(F192=2048,F192=2052)))),29,VLOOKUP(E192,Lookup!$B$2:$C$13,2,FALSE)) -> 30 | AF192: 0 | AI192: =+D192 -> 6
D193: 6 | E193: =IF(E192="","",VLOOKUP(E192,Lookup!$A$2:$B$13,2,FALSE)) -> Jul | F193: 2027 | AE193: =IF(OR(AND(E193="Feb",OR(F193=2020,OR(F193=2024,OR(F193=2028,OR(F193=2032,OR(F193=2036,F193=2040)))))),AND(E193="Feb",OR(F193=2044,OR(F193=2048,F193=2052)))),29,VLOOKUP(E193,Lookup!$B$2:$C$13,2,FALSE)) -> 31 | AF193: 0 | AI193: 6
D194: 6 | E194: =IF(E193="","",VLOOKUP(E193,Lookup!$A$2:$B$13,2,FALSE)) -> Aug | F194: 2027 | AE194: =IF(OR(AND(E194="Feb",OR(F194=2020,OR(F194=2024,OR(F194=2028,OR(F194=2032,OR(F194=2036,F194=2040)))))),AND(E194="Feb",OR(F194=2044,OR(F194=2048,F194=2052)))),29,VLOOKUP(E194,Lookup!$B$2:$C$13,2,FALSE)) -> 31 | AF194: 0 | AI194: 6
D195: 6 | E195: =IF(E194="","",VLOOKUP(E194,Lookup!$A$2:$B$13,2,FALSE)) -> Sep | F195: 2027 | AE195: =IF(OR(AND(E195="Feb",OR(F195=2020,OR(F195=2024,OR(F195=2028,OR(F195=2032,OR(F195=2036,F195=2040)))))),AND(E195="Feb",OR(F195=2044,OR(F195=2048,F195=2052)))),29,VLOOKUP(E195,Lookup!$B$2:$C$13,2,FALSE)) -> 30 | AF195: 0 | AI195: 6
D196: 6 | E196: =IF(E195="","",VLOOKUP(E195,Lookup!$A$2:$B$13,2,FALSE)) -> Oct | F196: 2027 | AE196: =IF(OR(AND(E196="Feb",OR(F196=2020,OR(F196=2024,OR(F196=2028,OR(F196=2032,OR(F196=2036,F196=2040)))))),AND(E196="Feb",OR(F196=2044,OR(F196=2048,F196=2052)))),29,VLOOKUP(E196,Lookup!$B$2:$C$13,2,FALSE)) -> 31 | AF196: 0 | AI196: 6
D197: 6 | E197: =IF(E196="","",VLOOKUP(E196,Lookup!$A$2:$B$13,2,FALSE)) -> Nov | F197: 2027 | AE197: =IF(OR(AND(E197="Feb",OR(F197=2020,OR(F197=2024,OR(F197=2028,OR(F197=2032,OR(F197=2036,F197=2040)))))),AND(E197="Feb",OR(F197=2044,OR(F197=2048,F197=2052)))),29,VLOOKUP(E197,Lookup!$B$2:$C$13,2,FALSE)) -> 30 | AF197: 0 | AI197: 6
D198: 6 | E198: =IF(E197="","",VLOOKUP(E197,Lookup!$A$2:$B$13,2,FALSE)) -> Dec | F198: 2027 | AE198: =IF(OR(AND(E198="Feb",OR(F198=2020,OR(F198=2024,OR(F198=2028,OR(F198=2032,OR(F198=2036,F198=2040)))))),AND(E198="Feb",OR(F198=2044,OR(F198=2048,F198=2052)))),29,VLOOKUP(E198,Lookup!$B$2:$C$13,2,FALSE)) -> 31 | AF198: 0 | AI198: 6
D199: 7 | E199: =IF(E198="","",VLOOKUP(E198,Lookup!$A$2:$B$13,2,FALSE)) -> Jan | F199: 2028 | AE199: =IF(OR(AND(E199="Feb",OR(F199=2020,OR(F199=2024,OR(F199=2028,OR(F199=2032,OR(F199=2036,F199=2040)))))),AND(E199="Feb",OR(F199=2044,OR(F199=2048,F199=2052)))),29,VLOOKUP(E199,Lookup!$B$2:$C$13,2,FALSE)) -> 31 | AF199: 0 | AI199: =+D199 -> 7
D200: 7 | E200: =IF(E199="","",VLOOKUP(E199,Lookup!$A$2:$B$13,2,FALSE)) -> Feb | F200: 2028 | AE200: =IF(OR(AND(E200="Feb",OR(F200=2020,OR(F200=2024,OR(F200=2028,OR(F200=2032,OR(F200=2036,F200=2040)))))),AND(E200="Feb",OR(F200=2044,OR(F200=2048,F200=2052)))),29,VLOOKUP(E200,Lookup!$B$2:$C$13,2,FALSE)) -> 29 | AF200: 0 | AI200: =+D200 -> 7
D201: 7 | E201: =IF(E200="","",VLOOKUP(E200,Lookup!$A$2:$B$13,2,FALSE)) -> Mar | F201: 2028 | AE201: =IF(OR(AND(E201="Feb",OR(F201=2020,OR(F201=2024,OR(F201=2028,OR(F201=2032,OR(F201=2036,F201=2040)))))),AND(E201="Feb",OR(F201=2044,OR(F201=2048,F201=2052)))),29,VLOOKUP(E201,Lookup!$B$2:$C$13,2,FALSE)) -> 31 | AF201: 0 | AI201: 7
D202: 7 | E202: =IF(E201="","",VLOOKUP(E201,Lookup!$A$2:$B$13,2,FALSE)) -> Apr | F202: 2028 | AE202: =IF(OR(AND(E202="Feb",OR(F202=2020,OR(F202=2024,OR(F202=2028,OR(F202=2032,OR(F202=2036,F202=2040)))))),AND(E202="Feb",OR(F202=2044,OR(F202=2048,F202=2052)))),29,VLOOKUP(E202,Lookup!$B$2:$C$13,2,FALSE)) -> 30 | AF202: 0 | AI202: 7
D203: 7 | E203: =IF(E202="","",VLOOKUP(E202,Lookup!$A$2:$B$13,2,FALSE)) -> May | F203: 2028 | AE203: =IF(OR(AND(E203="Feb",OR(F203=2020,OR(F203=2024,OR(F203=2028,OR(F203=2032,OR(F203=2036,F203=2040)))))),AND(E203="Feb",OR(F203=2044,OR(F203=2048,F203=2052)))),29,VLOOKUP(E203,Lookup!$B$2:$C$13,2,FALSE)) -> 31 | AF203: 0 | AI203: 7
D204: =+D192+1 -> 7 | E204: =IF(E203="","",VLOOKUP(E203,Lookup!$A$2:$B$13,2,FALSE)) -> Jun | F204: =IF(E203=0,"",IF(E203="Dec",F203+1,F203)) -> 2028 | AE204: =IF(OR(AND(E204="Feb",OR(F204=2020,OR(F204=2024,OR(F204=2028,OR(F204=2032,OR(F204=2036,F204=2040)))))),AND(E204="Feb",OR(F204=2044,OR(F204=2048,F204=2052)))),29,VLOOKUP(E204,Lookup!$B$2:$C$13,2,FALSE)) -> 30 | AF204: 0 | AI204: 7
D205: 7 | E205: =IF(E204="","",VLOOKUP(E204,Lookup!$A$2:$B$13,2,FALSE)) -> Jul | F205: 2028 | AE205: =IF(OR(AND(E205="Feb",OR(F205=2020,OR(F205=2024,OR(F205=2028,OR(F205=2032,OR(F205=2036,F205=2040)))))),AND(E205="Feb",OR(F205=2044,OR(F205=2048,F205=2052)))),29,VLOOKUP(E205,Lookup!$B$2:$C$13,2,FALSE)) -> 31 | AF205: 0 | AI205: 7
D206: 7 | E206: =IF(E205="","",VLOOKUP(E205,Lookup!$A$2:$B$13,2,FALSE)) -> Aug | F206: 2028 | AE206: =IF(OR(AND(E206="Feb",OR(F206=2020,OR(F206=2024,OR(F206=2028,OR(F206=2032,OR(F206=2036,F206=2040)))))),AND(E206="Feb",OR(F206=2044,OR(F206=2048,F206=2052)))),29,VLOOKUP(E206,Lookup!$B$2:$C$13,2,FALSE)) -> 31 | AF206: 0 | AI206: 7
D207: 7 | E207: =IF(E206="","",VLOOKUP(E206,Lookup!$A$2:$B$13,2,FALSE)) -> Sep | F207: 2028 | AE207: =IF(OR(AND(E207="Feb",OR(F207=2020,OR(F207=2024,OR(F207=2028,OR(F207=2032,OR(F207=2036,F207=2040)))))),AND(E207="Feb",OR(F207=2044,OR(F207=2048,F207=2052)))),29,VLOOKUP(E207,Lookup!$B$2:$C$13,2,FALSE)) -> 30 | AF207: 0 | AI207: 7
D208: 7 | E208: =IF(E207="","",VLOOKUP(E207,Lookup!$A$2:$B$13,2,FALSE)) -> Oct | F208: 2028 | AE208: =IF(OR(AND(E208="Feb",OR(F208=2020,OR(F208=2024,OR(F208=2028,OR(F208=2032,OR(F208=2036,F208=2040)))))),AND(E208="Feb",OR(F208=2044,OR(F208=2048,F208=2052)))),29,VLOOKUP(E208,Lookup!$B$2:$C$13,2,FALSE)) -> 31 | AF208: 0 | AI208: 7
D209: 7 | E209: =IF(E208="","",VLOOKUP(E208,Lookup!$A$2:$B$13,2,FALSE)) -> Nov | F209: 2028 | AE209: =IF(OR(AND(E209="Feb",OR(F209=2020,OR(F209=2024,OR(F209=2028,OR(F209=2032,OR(F209=2036,F209=2040)))))),AND(E209="Feb",OR(F209=2044,OR(F209=2048,F209=2052)))),29,VLOOKUP(E209,Lookup!$B$2:$C$13,2,FALSE)) -> 30 | AF209: 0 | AI209: 7
D210: 7 | E210: =IF(E209="","",VLOOKUP(E209,Lookup!$A$2:$B$13,2,FALSE)) -> Dec | F210: 2028 | AE210: =IF(OR(AND(E210="Feb",OR(F210=2020,OR(F210=2024,OR(F210=2028,OR(F210=2032,OR(F210=2036,F210=2040)))))),AND(E210="Feb",OR(F210=2044,OR(F210=2048,F210=2052)))),29,VLOOKUP(E210,Lookup!$B$2:$C$13,2,FALSE)) -> 31 | AF210: 0 | AI210: 7
D211: 8 | E211: =IF(E210="","",VLOOKUP(E210,Lookup!$A$2:$B$13,2,FALSE)) -> Jan | F211: 2029 | AE211: =IF(OR(AND(E211="Feb",OR(F211=2020,OR(F211=2024,OR(F211=2028,OR(F211=2032,OR(F211=2036,F211=2040)))))),AND(E211="Feb",OR(F211=2044,OR(F211=2048,F211=2052)))),29,VLOOKUP(E211,Lookup!$B$2:$C$13,2,FALSE)) -> 31 | AF211: 0 | AI211: 8
D212: 8 | E212: =IF(E211="","",VLOOKUP(E211,Lookup!$A$2:$B$13,2,FALSE)) -> Feb | F212: 2029 | AE212: =IF(OR(AND(E212="Feb",OR(F212=2020,OR(F212=2024,OR(F212=2028,OR(F212=2032,OR(F212=2036,F212=2040)))))),AND(E212="Feb",OR(F212=2044,OR(F212=2048,F212=2052)))),29,VLOOKUP(E212,Lookup!$B$2:$C$13,2,FALSE)) -> 28 | AF212: 0 | AI212: 8
D213: 8 | E213: =IF(E212="","",VLOOKUP(E212,Lookup!$A$2:$B$13,2,FALSE)) -> Mar | F213: 2029 | AE213: =IF(OR(AND(E213="Feb",OR(F213=2020,OR(F213=2024,OR(F213=2028,OR(F213=2032,OR(F213=2036,F213=2040)))))),AND(E213="Feb",OR(F213=2044,OR(F213=2048,F213=2052)))),29,VLOOKUP(E213,Lookup!$B$2:$C$13,2,FALSE)) -> 31 | AF213: 0 | AI213: 8
D214: 8 | E214: =IF(E213="","",VLOOKUP(E213,Lookup!$A$2:$B$13,2,FALSE)) -> Apr | F214: 2029 | AE214: =IF(OR(AND(E214="Feb",OR(F214=2020,OR(F214=2024,OR(F214=2028,OR(F214=2032,OR(F214=2036,F214=2040)))))),AND(E214="Feb",OR(F214=2044,OR(F214=2048,F214=2052)))),29,VLOOKUP(E214,Lookup!$B$2:$C$13,2,FALSE)) -> 30 | AF214: 0 | AI214: 8
D215: 8 | E215: =IF(E214="","",VLOOKUP(E214,Lookup!$A$2:$B$13,2,FALSE)) -> May | F215: 2029 | AE215: =IF(OR(AND(E215="Feb",OR(F215=2020,OR(F215=2024,OR(F215=2028,OR(F215=2032,OR(F215=2036,F215=2040)))))),AND(E215="Feb",OR(F215=2044,OR(F215=2048,F215=2052)))),29,VLOOKUP(E215,Lookup!$B$2:$C$13,2,FALSE)) -> 31 | AF215: 0 | AI215: 8
D216: 8 | E216: =IF(E215="","",VLOOKUP(E215,Lookup!$A$2:$B$13,2,FALSE)) -> Jun | F216: 2029 | AE216: =IF(OR(AND(E216="Feb",OR(F216=2020,OR(F216=2024,OR(F216=2028,OR(F216=2032,OR(F216=2036,F216=2040)))))),AND(E216="Feb",OR(F216=2044,OR(F216=2048,F216=2052)))),29,VLOOKUP(E216,Lookup!$B$2:$C$13,2,FALSE)) -> 30 | AF216: 0 | AI216: 8
D217: 8 | E217: =IF(E216="","",VLOOKUP(E216,Lookup!$A$2:$B$13,2,FALSE)) -> Jul | F217: 2029 | AE217: =IF(OR(AND(E217="Feb",OR(F217=2020,OR(F217=2024,OR(F217=2028,OR(F217=2032,OR(F217=2036,F217=2040)))))),AND(E217="Feb",OR(F217=2044,OR(F217=2048,F217=2052)))),29,VLOOKUP(E217,Lookup!$B$2:$C$13,2,FALSE)) -> 31 | AF217: 0 | AI217: 8
D218: 8 | E218: =IF(E217="","",VLOOKUP(E217,Lookup!$A$2:$B$13,2,FALSE)) -> Aug | F218: 2029 | AE218: =IF(OR(AND(E218="Feb",OR(F218=2020,OR(F218=2024,OR(F218=2028,OR(F218=2032,OR(F218=2036,F218=2040)))))),AND(E218="Feb",OR(F218=2044,OR(F218=2048,F218=2052)))),29,VLOOKUP(E218,Lookup!$B$2:$C$13,2,FALSE)) -> 31 | AF218: 0 | AI218: 8
D219: 8 | E219: =IF(E218="","",VLOOKUP(E218,Lookup!$A$2:$B$13,2,FALSE)) -> Sep | F219: 2029 | AE219: =IF(OR(AND(E219="Feb",OR(F219=2020,OR(F219=2024,OR(F219=2028,OR(F219=2032,OR(F219=2036,F219=2040)))))),AND(E219="Feb",OR(F219=2044,OR(F219=2048,F219=2052)))),29,VLOOKUP(E219,Lookup!$B$2:$C$13,2,FALSE)) -> 30 | AF219: 0 | AI219: 8
D220: 8 | E220: =IF(E219="","",VLOOKUP(E219,Lookup!$A$2:$B$13,2,FALSE)) -> Oct | F220: 2029 | AE220: =IF(OR(AND(E220="Feb",OR(F220=2020,OR(F220=2024,OR(F220=2028,OR(F220=2032,OR(F220=2036,F220=2040)))))),AND(E220="Feb",OR(F220=2044,OR(F220=2048,F220=2052)))),29,VLOOKUP(E220,Lookup!$B$2:$C$13,2,FALSE)) -> 31 | AF220: 0 | AI220: 8
... 642 more rows

Sheet Lookup (hidden)
A1: Month | B1: Next Month | C1: Days per Month | F1: Leap Years
A2: Jan | B2: Feb | C2: 28 | D2: 2009 | F2: 2008 | G2: 2008-02-29 | I2: Yes
A3: Feb | B3: Mar | C3: 31 | D3: 2010 | F3: 2012 | G3: 2012-02-29 | I3: No
A4: Mar | B4: Apr | C4: 30 | D4: 2011 | F4: =+F3+4 -> 2016 | G4: 2014-02-28
A5: Apr | B5: May | C5: 31 | D5: 2012 | F5: =+F4+4 -> 2020 | G5: =+G2+1 -> 2008-03-01
A6: May | B6: Jun | C6: 30 | D6: 2013 | F6: 2024
A7: Jun | B7: Jul | C7: 31 | F7: 2028
A8: Jul | B8: Aug | C8: 31 | F8: 2032
A9: Aug | B9: Sep | C9: 30 | F9: 2036
A10: Sep | B10: Oct | C10: 31 | F10: 2040
A11: Oct | B11: Nov | C11: 30 | F11: 2044
A12: Nov | B12: Dec | C12: 31 | F12: 2048
A13: Dec | B13: Jan | C13: 31 | F13: 2052
F14: 2056
F15: 2060
A17: Yes | B17: Complete the hourly production data for all contract years on Part 2 - Data 2 worksheet
A18: No | B18: Complete the hourly production data for the first contract year on Part 2 - Data 2 worksheet
A21: Renewable Resource
A22: biomass
A23: hydro
A24: geothermal
A25: solar
A26: wind
A27: ocean thermal
A28: wave action
A29: tidal action

Sheet Part 3 - Qual Eval Scoresheet
A1: Invitation for Bid: GPA-012-23
A2: Renewable Energy Resource Acquisition for the Guam Power Authority (Phase IV)
A3: PART 3 - QUAL EVAL SCORESHEET
H4: Date:
A5: =CONCATENATE("Bidder's Name: ", 'Workbook Instructions'!A6) -> Bidder's Name:
A6: =CONCATENATE("Bidder's No.: ", 'Workbook Instructions'!A9) -> Bidder's No.: <<< BIDDER'S BID NO >>>
H7: BID EVALUTION
A8: EVALUATION FACTORS | E8: Raw Score Weight | F8: MAX Possible Score | G8: Maximum Weighted Possible Score | H8: RAW SCORE | I8: WEIGHTED SCORE
A9: A. PROJECT DEVELOPMENT | E9: 20 | F9: =SUM(F10:F15) -> 26 | G9: =+F9*E9 -> 520 | H9: =SUM(H10:H15) -> 0
B10: A1. Method and status of project financing (3) | F10: 3
B11: A2. Level of site control by developer (6) | F11: 6
B12: A3. Project team experience (5) | F12: 5
B13: A4. Project Schedule & Commerical Operation Date (4) | F13: 4
B14: A5. Status of equipment supply and EPC agreements (3) | F14: 3
B15: A6. Bidder concurrence to the draft Purchase Power Agreement (5) | F15: 5
A16: B. PHYSICAL PROJECT CHARACTERISTICS | E16: 20 | F16: =SUM(F17:F20) -> 20 | G16: =+F16*E16 -> 400 | H16: =SUM(H17:H20) -> 0
B17: B1. Operating Profile (5) | F17: 5
B18: B2. Point of delivery (5) | F18: 5
B19: B3. Risk that the resource will not perform as expected (5) | F19: 5
B20: B4. Project life and extension options. (5) | F20: 5
A21: C. POWER PRODUCT CHARACTERISTICS | E21: 25 | F21: =SUM(F22:F25) -> 12 | G21: =+F21*E21 -> 300 | H21: =SUM(H22:H24) -> 0
B22: C1. Guaranteed Annual MWH (3) | F22: 3
B23: C2. Dispatchability (3) - Proposals not capable of energy shifting total daily solar generated energy shall be disqualified. | F23: 3
B24: C3. Product flexibility (3) | F24: 3
B25: C4. Contract Term (3) | F25: 3
A26: D. CREDIT EVALUATION | E26: 20 | F26: =SUM(F27:F33) -> 21 | G26: =+F26*E26 -> 420 | H26: =SUM(H27:H33) -> 0
B27: D1. Debt and equity ratings (3) | F27: 3
B28: D2. Performance assurance (3) | F28: 3
B29: D3. Financial ratio analysis (3) | F29: 3
B30: D4. Default risk (3) | F30: 3
B31: D5. Credit concentration and liquidity effect (3) | F31: 3
B32: D6. Enforceability of contractual credit terms (3) | F32: 3
B33: D7. Bidder revisions to contract templates that may affect credit requirements (3) | F33: 3
A34: E. Environmental Permits and Impacts | E34: 15 | F34: =SUM(F35:F36) -> 15 | G34: =+F34*E34 -> 225 | H34: =SUM(H35:H35) -> 0
B35: E1. Permits (5) | F35: 5
B36: E2. Site Environmental Assessment (10) | F36: 10
A37: TOTALS | E37: =+E9+E16+E21+E26+E34 -> 100 | F37: =+F9+F16+F21+F26+F34 -> 94 | G37: =SUM(G9:G36) -> 1865 | H37: =+H9+H16+H21+H26+H34 -> 0
G38: EVALUATION RATING:
F40: ACCEPTABLE - Scores Greater Than or Equal to: | G40: =+G37*0.8 -> 1492
F41: POTENTIALLY ACCEPTABLE - Less than Acceptable but Greater Than or Equal to: | G41: =+G37*0.7 -> 1305.5
F42: UNACCEPTABLE - Scores are less than: | G42: =+G41 -> 1305.5
